[Event "Titled Tuesday Blitz April 26 Late 2022"]
[White "Vachier-Lagrave, Maxime"]
[Black "Makarian, Rudik"]
[WhiteFideId "623539"]
[BlackFideId "44105681"]
[WhiteElo "2813"]
[BlackElo "2388"]
[Result "0-1"]
[Round "05"]
[TimeControl "180+1"]
[Date "2022.04.26"]
[WhiteClock "0:00:02"]
[BlackClock "0:00:08"]

1. e4 {[%clk 0:03:00]}  e5 {[%clk 0:02:56]} 2. Nf3 {[%clk 0:02:57]}  Nc6 {[%clk 0:02:56]} 3. Bb5 {[%clk 0:02:56]}  a6 {[%clk 0:02:56]} 4. Ba4 {[%clk 0:02:56]}  Bc5 {[%clk 0:02:56]} 5. c3 {[%clk 0:02:55]}  Nge7 {[%clk 0:02:55]} 6. d4 {[%clk 0:02:54]}  exd4 {[%clk 0:02:53]} 7. cxd4 {[%clk 0:02:54]}  Bb4+ {[%clk 0:02:54]} 8. Nc3 {[%clk 0:02:54]}  d5 {[%clk 0:02:54]} 9. O-O {[%clk 0:02:50]}  O-O {[%clk 0:02:51]} 10. e5 {[%clk 0:02:35]}  Bg4 {[%clk 0:02:48]} 11. Be3 {[%clk 0:02:35]}  f6 {[%clk 0:02:39]} 12. e6 {[%clk 0:02:25]}  Bxe6 {[%clk 0:02:34]} 13. Re1 {[%clk 0:02:25]}  Bxc3 {[%clk 0:02:31]} 14. bxc3 {[%clk 0:02:24]}  Qd7 {[%clk 0:02:27]} 15. h3 {[%clk 0:02:07]}  b5 {[%clk 0:02:19]} 16. Bb3 {[%clk 0:02:01]}  Na5 {[%clk 0:02:18]} 17. Bc1 {[%clk 0:02:01]}  Rfe8 {[%clk 0:02:08]} 18. Ba3 {[%clk 0:01:57]}  Nc4 {[%clk 0:02:02]} 19. Bc5 {[%clk 0:01:54]}  Ng6 {[%clk 0:01:53]} 20. Kh2 {[%clk 0:01:43]}  Bf5 {[%clk 0:01:33]} 21. Rxe8+ {[%clk 0:01:43]}  Rxe8 {[%clk 0:01:32]} 22. a4 {[%clk 0:01:42]}  Nb2 {[%clk 0:01:26]} 23. Qd2 {[%clk 0:01:39]}  Nxa4 {[%clk 0:01:22]} 24. Bb4 {[%clk 0:01:38]}  c6 {[%clk 0:01:07]} 25. Kg1 {[%clk 0:01:20]}  Be4 {[%clk 0:00:41]} 26. Nh2 {[%clk 0:01:16]}  Nb6 {[%clk 0:00:25]} 27. f3 {[%clk 0:01:02]}  Bf5 {[%clk 0:00:26]} 28. Rxa6 {[%clk 0:00:51]}  Nc4 {[%clk 0:00:26]} 29. Bxc4 {[%clk 0:00:51]}  bxc4 {[%clk 0:00:21]} 30. Qa2 {[%clk 0:00:34]}  Bd3 {[%clk 0:00:19]} 31. Ra8 {[%clk 0:00:33]}  h5 {[%clk 0:00:16]} 32. Rxe8+ {[%clk 0:00:15]}  Qxe8 {[%clk 0:00:17]} 33. Qd2 {[%clk 0:00:14]}  Kh7 {[%clk 0:00:16]} 34. Bd6 {[%clk 0:00:09]}  Qa8 {[%clk 0:00:14]} 35. g4 {[%clk 0:00:08]}  Qa1+ {[%clk 0:00:14]} 36. Kf2 {[%clk 0:00:08]}  h4 {[%clk 0:00:11]} 37. Kg2 {[%clk 0:00:04]}  Qb1 {[%clk 0:00:11]} 38. Ba3 {[%clk 0:00:03]}  Qb3 {[%clk 0:00:10]} 39. Bc1 {[%clk 0:00:03]}  Qb8 {[%clk 0:00:10]} 40. Qf2 {[%clk 0:00:02]}  Kg8 {[%clk 0:00:09]} 41. Bd2 {[%clk 0:00:02]}  Qd6 {[%clk 0:00:09]} 42. f4 {[%clk 0:00:02]}  Be4+ {[%clk 0:00:09]} 43. Kg1 {[%clk 0:00:03]}  f5 {[%clk 0:00:09]} 44. g5 {[%clk 0:00:03]}  Qb8 {[%clk 0:00:09]} 45. Nf1 {[%clk 0:00:04]}  Qb1 {[%clk 0:00:10]} 46. Kh2 {[%clk 0:00:05]}  Qd1 {[%clk 0:00:09]} 47. Be3 {[%clk 0:00:02]}  Kf7 {[%clk 0:00:09]} 48. Bd2 {[%clk 0:00:02]}  Kg8 {[%clk 0:00:09]} 49. Be3 {[%clk 0:00:02]}  Nf8 {[%clk 0:00:08]} 50. Bd2 {[%clk 0:00:01]}  Ne6 {[%clk 0:00:09]} 51. Qe1 {[%clk 0:00:02]}  Qf3 {[%clk 0:00:08]} 52. Ne3 {[%clk 0:00:02]}  Qxf4+ {[%clk 0:00:08]} 53. Kg1 {[%clk 0:00:02]}  Qf3 {[%clk 0:00:08]} 54. Qxh4 {[%clk 0:00:02]}  Nf4 {[%clk 0:00:08]} 55. g6 {[%clk 0:00:01]}  Ne2+ {[%clk 0:00:07]} 56. Kh2 {[%clk 0:00:02]}  Qh1# {[%clk 0:00:08]} 0-1


[Site "https://www.chess.com"]

[Event "Titled Tuesday Blitz April 26 Late 2022"]
[White "Winkels, Marcel"]
[Black "Leschinsky, Gary"]
[WhiteFideId "1003887"]
[BlackFideId "30951321"]
[WhiteElo "1900"]
[BlackElo "1782"]
[Result "0-1"]
[Round "05"]
[TimeControl "180+1"]
[Date "2022.04.26"]
[WhiteClock "0:00:03"]
[BlackClock "0:00:56"]

1. e4 {[%clk 0:03:00]}  c6 {[%clk 0:03:00]} 2. d4 {[%clk 0:02:59]}  d5 {[%clk 0:03:00]} 3. exd5 {[%clk 0:02:59]}  cxd5 {[%clk 0:03:01]} 4. c4 {[%clk 0:03:00]}  Nf6 {[%clk 0:02:59]} 5. Nc3 {[%clk 0:03:00]}  e6 {[%clk 0:02:59]} 6. Nf3 {[%clk 0:02:56]}  Be7 {[%clk 0:02:59]} 7. cxd5 {[%clk 0:02:53]}  Nxd5 {[%clk 0:02:58]} 8. Bd3 {[%clk 0:02:52]}  O-O {[%clk 0:02:58]} 9. O-O {[%clk 0:02:50]}  Nc6 {[%clk 0:02:58]} 10. a3 {[%clk 0:02:50]}  Bf6 {[%clk 0:02:46]} 11. Re1 {[%clk 0:02:41]}  Nxc3 {[%clk 0:02:32]} 12. bxc3 {[%clk 0:02:39]}  b6 {[%clk 0:02:31]} 13. Qc2 {[%clk 0:02:28]}  h6 {[%clk 0:02:31]} 14. Be4 {[%clk 0:02:23]}  Bb7 {[%clk 0:02:30]} 15. Bf4 {[%clk 0:02:15]}  Na5 {[%clk 0:02:28]} 16. Ne5 {[%clk 0:02:04]}  Rc8 {[%clk 0:02:14]} 17. Bxb7 {[%clk 0:01:59]}  Nxb7 {[%clk 0:02:15]} 18. Qe4 {[%clk 0:01:57]}  Nd6 {[%clk 0:02:14]} 19. Qf3 {[%clk 0:01:54]}  Nb5 {[%clk 0:01:53]} 20. Bd2 {[%clk 0:01:45]}  Qd5 {[%clk 0:01:36]} 21. Qxd5 {[%clk 0:01:35]}  exd5 {[%clk 0:01:37]} 22. Nd7 {[%clk 0:01:35]}  Rfe8 {[%clk 0:01:35]} 23. Nxf6+ {[%clk 0:01:31]}  gxf6 {[%clk 0:01:34]} 24. a4 {[%clk 0:01:13]}  Rxe1+ {[%clk 0:01:32]} 25. Rxe1 {[%clk 0:01:10]}  Nxc3 {[%clk 0:01:32]} 26. Bxh6 {[%clk 0:01:02]}  Kh7 {[%clk 0:01:24]} 27. Bf4 {[%clk 0:00:55]}  Nxa4 {[%clk 0:01:22]} 28. Re7 {[%clk 0:00:53]}  Kg6 {[%clk 0:01:20]} 29. Rxa7 {[%clk 0:00:52]}  Rc4 {[%clk 0:01:19]} 30. Be3 {[%clk 0:00:45]}  Nc3 {[%clk 0:01:16]} 31. Rb7 {[%clk 0:00:29]}  b5 {[%clk 0:01:15]} 32. h3 {[%clk 0:00:20]}  b4 {[%clk 0:01:14]} 33. g4 {[%clk 0:00:18]}  Ne2+ {[%clk 0:01:13]} 34. Kf1 {[%clk 0:00:16]}  Nxd4 {[%clk 0:01:14]} 35. h4 {[%clk 0:00:13]}  Nc2 {[%clk 0:01:06]} 36. Bd2 {[%clk 0:00:11]}  Rxg4 {[%clk 0:01:05]} 37. Rc7 {[%clk 0:00:06]}  Nd4 {[%clk 0:01:02]} 38. Bxb4 {[%clk 0:00:04]}  Ne6 {[%clk 0:00:57]} 39. Ra7 {[%clk 0:00:03]}  Rxb4 {[%clk 0:00:56]} 0-1


[Site "https://www.chess.com"]

[Event "Titled Tuesday Blitz April 26 Late 2022"]
[White "Yanayt, Eugene"]
[Black "Dahlgren, James Allen"]
[WhiteFideId "2020165"]
[BlackFideId "22256873"]
[WhiteElo "2046"]
[BlackElo "2088"]
[Result "1-0"]
[Round "05"]
[TimeControl "180+1"]
[Date "2022.04.26"]
[WhiteClock "0:00:13"]
[BlackClock "0:00:06"]

1. d4 {[%clk 0:01:17]}  e6 {[%clk 0:03:00]} 2. g3 {[%clk 0:01:16]}  c5 {[%clk 0:03:01]} 3. Nf3 {[%clk 0:01:15]}  Nf6 {[%clk 0:03:02]} 4. Bg2 {[%clk 0:01:15]}  Nc6 {[%clk 0:03:02]} 5. O-O {[%clk 0:01:15]}  d5 {[%clk 0:03:02]} 6. c4 {[%clk 0:01:14]}  Be7 {[%clk 0:03:00]} 7. cxd5 {[%clk 0:01:11]}  exd5 {[%clk 0:03:01]} 8. Nc3 {[%clk 0:01:12]}  cxd4 {[%clk 0:03:01]} 9. Nxd4 {[%clk 0:01:11]}  O-O {[%clk 0:03:02]} 10. Bf4 {[%clk 0:01:11]}  Be6 {[%clk 0:02:59]} 11. Rc1 {[%clk 0:01:11]}  Nxd4 {[%clk 0:02:59]} 12. Qxd4 {[%clk 0:01:10]}  Qd7 {[%clk 0:02:54]} 13. Rfd1 {[%clk 0:01:10]}  Rfd8 {[%clk 0:02:51]} 14. Qa4 {[%clk 0:01:05]}  Qxa4 {[%clk 0:02:48]} 15. Nxa4 {[%clk 0:01:05]}  h6 {[%clk 0:02:37]} 16. Nc5 {[%clk 0:01:05]}  Rac8 {[%clk 0:02:31]} 17. Nxe6 {[%clk 0:01:04]}  fxe6 {[%clk 0:02:30]} 18. Bh3 {[%clk 0:01:04]}  Kf7 {[%clk 0:02:27]} 19. f3 {[%clk 0:01:04]}  g5 {[%clk 0:02:12]} 20. Be5 {[%clk 0:01:04]}  Nd7 {[%clk 0:02:04]} 21. Bc7 {[%clk 0:01:03]}  Bc5+ {[%clk 0:01:44]} 22. Rxc5 {[%clk 0:01:01]}  Nxc5 {[%clk 0:01:45]} 23. Bxd8 {[%clk 0:00:59]}  Rxd8 {[%clk 0:01:46]} 24. Rc1 {[%clk 0:00:57]}  b6 {[%clk 0:01:40]} 25. b4 {[%clk 0:00:57]}  Na6 {[%clk 0:01:39]} 26. a3 {[%clk 0:00:55]}  Nb8 {[%clk 0:01:01]} 27. Rc7+ {[%clk 0:00:49]}  Rd7 {[%clk 0:01:02]} 28. Rc8 {[%clk 0:00:50]}  Na6 {[%clk 0:00:55]} 29. Rh8 {[%clk 0:00:48]}  Kg7 {[%clk 0:00:47]} 30. Bxe6 {[%clk 0:00:35]}  Kxh8 {[%clk 0:00:45]} 31. Bxd7 {[%clk 0:00:35]}  Kg7 {[%clk 0:00:43]} 32. Kg2 {[%clk 0:00:32]}  d4 {[%clk 0:00:42]} 33. f4 {[%clk 0:00:29]}  Kf6 {[%clk 0:00:41]} 34. Kf3 {[%clk 0:00:29]}  Nb8 {[%clk 0:00:30]} 35. Bb5 {[%clk 0:00:28]}  a6 {[%clk 0:00:29]} 36. Be8 {[%clk 0:00:25]}  Ke7 {[%clk 0:00:17]} 37. Ba4 {[%clk 0:00:23]}  Kd6 {[%clk 0:00:13]} 38. Ke4 {[%clk 0:00:23]}  b5 {[%clk 0:00:13]} 39. Bb3 {[%clk 0:00:22]}  Nc6 {[%clk 0:00:14]} 40. Bd5 {[%clk 0:00:22]}  Ne7 {[%clk 0:00:14]} 41. Ba8 {[%clk 0:00:21]}  gxf4 {[%clk 0:00:14]} 42. gxf4 {[%clk 0:00:21]}  Ng6 {[%clk 0:00:10]} 43. f5 {[%clk 0:00:20]}  Nh4 {[%clk 0:00:10]} 44. Kxd4 {[%clk 0:00:16]}  Nxf5+ {[%clk 0:00:10]} 45. Ke4 {[%clk 0:00:16]}  Ne7 {[%clk 0:00:10]} 46. Bb7 {[%clk 0:00:16]}  Nc6 {[%clk 0:00:07]} 47. Bxc6 {[%clk 0:00:15]}  Kxc6 {[%clk 0:00:07]} 48. Ke5 {[%clk 0:00:15]}  a5 {[%clk 0:00:06]} 49. e4 {[%clk 0:00:14]}  axb4 {[%clk 0:00:06]} 50. axb4 {[%clk 0:00:14]}  Kd7 {[%clk 0:00:06]} 51. Kf6 {[%clk 0:00:14]}  Kd6 {[%clk 0:00:06]} 52. h3 {[%clk 0:00:13]}  h5 {[%clk 0:00:06]} 53. h4 {[%clk 0:00:13]} 1-0


[Site "https://www.chess.com"]

[Event "Titled Tuesday Blitz April 26 Late 2022"]
[White "Yurovskykh, Oleksandr"]
[Black "Omariev, Maksim"]
[WhiteFideId "14134020"]
[BlackFideId "4193423"]
[WhiteElo "2292"]
[BlackElo "2495"]
[Result "0-1"]
[Round "05"]
[TimeControl "180+1"]
[Date "2022.04.26"]
[WhiteClock "0:00:01"]
[BlackClock "0:00:05"]

1. d4 {[%clk 0:02:54]}  Nf6 {[%clk 0:02:57]} 2. Nf3 {[%clk 0:02:53]}  c5 {[%clk 0:02:56]} 3. c3 {[%clk 0:02:50]}  e6 {[%clk 0:02:50]} 4. Bf4 {[%clk 0:02:48]}  b6 {[%clk 0:02:33]} 5. e3 {[%clk 0:02:47]}  Bb7 {[%clk 0:02:33]} 6. Nbd2 {[%clk 0:02:47]}  Be7 {[%clk 0:02:29]} 7. h3 {[%clk 0:02:47]}  O-O {[%clk 0:02:29]} 8. Bd3 {[%clk 0:02:47]}  d5 {[%clk 0:02:12]} 9. O-O {[%clk 0:02:43]}  Nbd7 {[%clk 0:02:12]} 10. Qe2 {[%clk 0:02:39]}  a6 {[%clk 0:02:11]} 11. Rad1 {[%clk 0:02:36]}  b5 {[%clk 0:02:11]} 12. Ne5 {[%clk 0:02:31]}  h6 {[%clk 0:02:07]} 13. Rfe1 {[%clk 0:02:28]}  Qb6 {[%clk 0:02:05]} 14. Bb1 {[%clk 0:01:56]}  Rfd8 {[%clk 0:01:49]} 15. Qd3 {[%clk 0:01:43]}  a5 {[%clk 0:01:43]} 16. Nxd7 {[%clk 0:01:35]}  Rxd7 {[%clk 0:01:44]} 17. Nf3 {[%clk 0:01:35]}  b4 {[%clk 0:01:38]} 18. Ne5 {[%clk 0:01:35]}  Rdd8 {[%clk 0:01:35]} 19. Ng4 {[%clk 0:01:26]}  a4 {[%clk 0:00:38]} 20. Nxf6+ {[%clk 0:00:47]}  Bxf6 {[%clk 0:00:39]} 21. Qh7+ {[%clk 0:00:41]}  Kf8 {[%clk 0:00:39]} 22. Be5 {[%clk 0:00:41]}  Ke7 {[%clk 0:00:31]} 23. Bxf6+ {[%clk 0:00:37]}  Kxf6 {[%clk 0:00:32]} 24. dxc5 {[%clk 0:00:29]}  Qxc5 {[%clk 0:00:26]} 25. Rd4 {[%clk 0:00:29]}  Rg8 {[%clk 0:00:15]} 26. Rxb4 {[%clk 0:00:25]}  Bc6 {[%clk 0:00:13]} 27. Qd3 {[%clk 0:00:21]}  Ke7 {[%clk 0:00:13]} 28. a3 {[%clk 0:00:21]}  Rgd8 {[%clk 0:00:12]} 29. Qd4 {[%clk 0:00:21]}  Qxd4 {[%clk 0:00:11]} 30. exd4 {[%clk 0:00:20]}  Rab8 {[%clk 0:00:10]} 31. Bd3 {[%clk 0:00:20]}  Kd6 {[%clk 0:00:09]} 32. Kf1 {[%clk 0:00:20]}  f6 {[%clk 0:00:08]} 33. f4 {[%clk 0:00:20]}  g5 {[%clk 0:00:08]} 34. g3 {[%clk 0:00:19]}  gxf4 {[%clk 0:00:08]} 35. gxf4 {[%clk 0:00:20]}  Rg8 {[%clk 0:00:08]} 36. Kf2 {[%clk 0:00:20]}  h5 {[%clk 0:00:07]} 37. Rg1 {[%clk 0:00:20]}  h4 {[%clk 0:00:07]} 38. Rg4 {[%clk 0:00:11]}  Rxg4 {[%clk 0:00:06]} 39. hxg4 {[%clk 0:00:12]}  Rg8 {[%clk 0:00:07]} 40. Be2 {[%clk 0:00:13]}  h3 {[%clk 0:00:03]} 41. Kg1 {[%clk 0:00:13]}  Rh8 {[%clk 0:00:02]} 42. Kh2 {[%clk 0:00:13]}  e5 {[%clk 0:00:02]} 43. fxe5+ {[%clk 0:00:13]}  fxe5 {[%clk 0:00:03]} 44. dxe5+ {[%clk 0:00:14]}  Kxe5 {[%clk 0:00:04]} 45. Bd1 {[%clk 0:00:14]}  Bd7 {[%clk 0:00:03]} 46. Bxa4 {[%clk 0:00:14]}  Be6 {[%clk 0:00:03]} 47. Rd4 {[%clk 0:00:13]}  Rf8 {[%clk 0:00:02]} 48. Kxh3 {[%clk 0:00:06]}  Rf2 {[%clk 0:00:02]} 49. Rb4 {[%clk 0:00:03]}  Re2 {[%clk 0:00:02]} 50. Kg3 {[%clk 0:00:03]}  Re3+ {[%clk 0:00:02]} 51. Kf2 {[%clk 0:00:03]}  Rd3 {[%clk 0:00:03]} 52. g5 {[%clk 0:00:02]}  Rh3 {[%clk 0:00:03]} 53. Kg2 {[%clk 0:00:02]}  Rd3 {[%clk 0:00:03]} 54. Bb5 {[%clk 0:00:01]}  Rd2+ {[%clk 0:00:04]} 55. Kg3 {[%clk 0:00:02]}  Bf5 {[%clk 0:00:05]} 56. Bf1 {[%clk 0:00:02]}  Be4 {[%clk 0:00:04]} 57. Rb6 {[%clk 0:00:01]}  Rd1 {[%clk 0:00:05]} 0-1


[Site "https://www.chess.com"]

[Event "Titled Tuesday Blitz April 26 Late 2022"]
[White "Zlatin, Alexander"]
[Black "Kozin, Yuri"]
[WhiteFideId "2810549"]
[BlackFideId "4129920"]
[WhiteElo "2228"]
[BlackElo "2560"]
[Result "0-1"]
[Round "05"]
[TimeControl "180+1"]
[Date "2022.04.26"]
[WhiteClock "0:00:01"]
[BlackClock "0:00:21"]

1. d4 {[%clk 0:02:54]}  d5 {[%clk 0:02:59]} 2. Nc3 {[%clk 0:02:52]}  e6 {[%clk 0:02:59]} 3. Bf4 {[%clk 0:02:49]}  Bd6 {[%clk 0:02:57]} 4. e3 {[%clk 0:02:48]}  Bxf4 {[%clk 0:02:55]} 5. exf4 {[%clk 0:02:49]}  Nf6 {[%clk 0:02:55]} 6. Nf3 {[%clk 0:02:47]}  O-O {[%clk 0:02:56]} 7. Qd2 {[%clk 0:02:43]}  b6 {[%clk 0:02:56]} 8. h4 {[%clk 0:02:15]}  c5 {[%clk 0:02:55]} 9. h5 {[%clk 0:02:14]}  Ne4 {[%clk 0:02:49]} 10. Qe3 {[%clk 0:01:48]}  Nxc3 {[%clk 0:02:36]} 11. bxc3 {[%clk 0:01:47]}  cxd4 {[%clk 0:02:26]} 12. cxd4 {[%clk 0:01:47]}  Qc7 {[%clk 0:02:22]} 13. h6 {[%clk 0:01:27]}  g6 {[%clk 0:02:21]} 14. Be2 {[%clk 0:01:17]}  Ba6 {[%clk 0:02:19]} 15. O-O {[%clk 0:01:14]}  Bxe2 {[%clk 0:02:17]} 16. Qxe2 {[%clk 0:01:11]}  Qxf4 {[%clk 0:02:16]} 17. c4 {[%clk 0:01:04]}  dxc4 {[%clk 0:02:11]} 18. Qxc4 {[%clk 0:01:00]}  Nd7 {[%clk 0:02:08]} 19. Rac1 {[%clk 0:00:57]}  Nf6 {[%clk 0:02:08]} 20. Ne5 {[%clk 0:00:52]}  Qxh6 {[%clk 0:02:07]} 21. Qc7 {[%clk 0:00:47]}  Nd5 {[%clk 0:02:03]} 22. Qb7 {[%clk 0:00:44]}  Qf4 {[%clk 0:01:54]} 23. Rfd1 {[%clk 0:00:34]}  h5 {[%clk 0:01:52]} 24. g3 {[%clk 0:00:32]}  Qf5 {[%clk 0:01:49]} 25. Nc6 {[%clk 0:00:23]}  h4 {[%clk 0:01:44]} 26. gxh4 {[%clk 0:00:07]}  Qg4+ {[%clk 0:01:40]} 27. Kf1 {[%clk 0:00:06]}  Qh3+ {[%clk 0:01:34]} 28. Ke1 {[%clk 0:00:04]}  Qxh4 {[%clk 0:01:32]} 29. Rd3 {[%clk 0:00:02]}  Qe4+ {[%clk 0:01:29]} 30. Kd2 {[%clk 0:00:02]}  Qf4+ {[%clk 0:01:17]} 31. Kc2 {[%clk 0:00:02]}  Rac8 {[%clk 0:01:07]} 32. Kb1 {[%clk 0:00:02]}  Qf5 {[%clk 0:00:56]} 33. Rd1 {[%clk 0:00:01]}  Kg7 {[%clk 0:00:53]} 34. Ka1 {[%clk 0:00:02]}  Nf4 {[%clk 0:00:47]} 35. Rc3 {[%clk 0:00:01]}  Qe4 {[%clk 0:00:43]} 36. Rdc1 {[%clk 0:00:01]}  Ne2 {[%clk 0:00:41]} 37. Re3 {[%clk 0:00:01]}  Qf4 {[%clk 0:00:38]} 38. Re1 {[%clk 0:00:01]}  Nxd4 {[%clk 0:00:35]} 39. Re4 {[%clk 0:00:01]}  Nc2+ {[%clk 0:00:34]} 40. Kb2 {[%clk 0:00:01]}  Qd2 {[%clk 0:00:33]} 41. R4e2 {[%clk 0:00:01]}  Qxe1 {[%clk 0:00:20]} 42. Rxe1 {[%clk 0:00:01]}  Nxe1 {[%clk 0:00:21]} 0-1


[Site "https://www.chess.com"]

[Event "Titled Tuesday Blitz April 26 Late 2022"]
[White "Aigner, Michael"]
[Black "Ezat, Mohamed"]
[WhiteFideId "2017288"]
[BlackFideId "10600906"]
[WhiteElo "2396"]
[BlackElo "2386"]
[Result "0-1"]
[Round "06"]
[TimeControl "180+1"]
[Date "2022.04.26"]
[WhiteClock "0:00:01"]
[BlackClock "0:00:20"]

1. e4 {[%clk 0:03:00]}  d5 {[%clk 0:02:58]} 2. exd5 {[%clk 0:03:00]}  c6 {[%clk 0:02:58]} 3. d4 {[%clk 0:02:59]}  cxd5 {[%clk 0:02:57]} 4. Nf3 {[%clk 0:02:59]}  Bg4 {[%clk 0:02:56]} 5. Be2 {[%clk 0:02:59]}  e6 {[%clk 0:02:55]} 6. Ne5 {[%clk 0:02:58]}  Bxe2 {[%clk 0:02:53]} 7. Qxe2 {[%clk 0:02:59]}  Nc6 {[%clk 0:02:53]} 8. c3 {[%clk 0:02:52]}  Nf6 {[%clk 0:02:51]} 9. Bf4 {[%clk 0:02:47]}  Bd6 {[%clk 0:02:49]} 10. Nd2 {[%clk 0:02:46]}  O-O {[%clk 0:02:49]} 11. O-O {[%clk 0:02:40]}  Qc7 {[%clk 0:02:48]} 12. Rfe1 {[%clk 0:02:38]}  Rfe8 {[%clk 0:02:46]} 13. h3 {[%clk 0:02:33]}  h6 {[%clk 0:02:45]} 14. g4 {[%clk 0:02:33]}  Rab8 {[%clk 0:02:42]} 15. f3 {[%clk 0:02:14]}  b5 {[%clk 0:02:40]} 16. a3 {[%clk 0:02:13]}  Na5 {[%clk 0:02:39]} 17. Kg2 {[%clk 0:02:10]}  Nc4 {[%clk 0:02:35]} 18. Rab1 {[%clk 0:02:03]}  a5 {[%clk 0:02:32]} 19. h4 {[%clk 0:01:43]}  Nxd2 {[%clk 0:02:27]} 20. Qxd2 {[%clk 0:01:41]}  b4 {[%clk 0:02:27]} 21. axb4 {[%clk 0:01:41]}  axb4 {[%clk 0:02:26]} 22. g5 {[%clk 0:01:19]}  hxg5 {[%clk 0:02:19]} 23. hxg5 {[%clk 0:01:19]}  Nh5 {[%clk 0:02:18]} 24. Bh2 {[%clk 0:01:13]}  bxc3 {[%clk 0:02:15]} 25. bxc3 {[%clk 0:01:12]}  Rxb1 {[%clk 0:02:16]} 26. Rxb1 {[%clk 0:01:12]}  Rc8 {[%clk 0:02:16]} 27. Rc1 {[%clk 0:01:05]}  g6 {[%clk 0:01:58]} 28. Rc2 {[%clk 0:00:55]}  Ng7 {[%clk 0:01:49]} 29. Kh3 {[%clk 0:00:51]}  Nf5 {[%clk 0:01:48]} 30. Ng4 {[%clk 0:00:50]}  Kg7 {[%clk 0:01:43]} 31. Be5+ {[%clk 0:00:44]}  Bxe5 {[%clk 0:01:42]} 32. Nxe5 {[%clk 0:00:44]}  Rh8+ {[%clk 0:01:41]} 33. Kg2 {[%clk 0:00:44]}  Qb6 {[%clk 0:01:35]} 34. Ng4 {[%clk 0:00:40]}  Qb5 {[%clk 0:01:24]} 35. Qe2 {[%clk 0:00:36]}  Qxe2+ {[%clk 0:01:18]} 36. Rxe2 {[%clk 0:00:36]}  Rc8 {[%clk 0:01:15]} 37. Ra2 {[%clk 0:00:30]}  Rxc3 {[%clk 0:01:04]} 38. Ra7 {[%clk 0:00:30]}  Ne3+ {[%clk 0:01:04]} 39. Nxe3 {[%clk 0:00:23]}  Rxe3 {[%clk 0:01:03]} 40. Kg3 {[%clk 0:00:22]}  Rd3 {[%clk 0:01:02]} 41. Ra4 {[%clk 0:00:22]}  Rc3 {[%clk 0:00:55]} 42. Kf4 {[%clk 0:00:16]}  Kf8 {[%clk 0:00:47]} 43. Ra8+ {[%clk 0:00:12]}  Ke7 {[%clk 0:00:42]} 44. Ra7+ {[%clk 0:00:12]}  Ke8 {[%clk 0:00:42]} 45. Ra8+ {[%clk 0:00:12]}  Kd7 {[%clk 0:00:42]} 46. Ra7+ {[%clk 0:00:13]}  Rc7 {[%clk 0:00:42]} 47. Ra4 {[%clk 0:00:08]}  Rc4 {[%clk 0:00:36]} 48. Ra7+ {[%clk 0:00:05]}  Kd6 {[%clk 0:00:36]} 49. Ra6+ {[%clk 0:00:05]}  Kc7 {[%clk 0:00:31]} 50. Ra7+ {[%clk 0:00:05]}  Kd6 {[%clk 0:00:28]} 51. Ra6+ {[%clk 0:00:05]}  Rc6 {[%clk 0:00:29]} 52. Ra7 {[%clk 0:00:04]}  Rc7 {[%clk 0:00:28]} 53. Ra6+ {[%clk 0:00:04]}  Ke7 {[%clk 0:00:28]} 54. Ke5 {[%clk 0:00:02]}  Rb7 {[%clk 0:00:25]} 55. Ra4 {[%clk 0:00:01]}  Rb3 {[%clk 0:00:19]} 56. Ra7+ {[%clk 0:00:01]}  Kf8 {[%clk 0:00:20]} 0-1


[Site "https://www.chess.com"]

[Event "Titled Tuesday Blitz April 26 Late 2022"]
[White "Ansh M Shah"]
[Black "Mikhalsky, Vladimir"]
[WhiteFideId "25033379"]
[BlackFideId "14144352"]
[WhiteElo "1819"]
[BlackElo "2301"]
[Result "1-0"]
[Round "06"]
[TimeControl "180+1"]
[Date "2022.04.26"]
[WhiteClock "0:00:42"]
[BlackClock "0:00:08"]

1. d4 {[%clk 0:03:00]}  Nf6 {[%clk 0:02:58]} 2. c4 {[%clk 0:03:01]}  g6 {[%clk 0:02:57]} 3. Nf3 {[%clk 0:03:02]}  Bg7 {[%clk 0:02:58]} 4. g3 {[%clk 0:03:03]}  O-O {[%clk 0:02:58]} 5. Bg2 {[%clk 0:03:04]}  c5 {[%clk 0:02:58]} 6. O-O {[%clk 0:03:05]}  d6 {[%clk 0:02:54]} 7. dxc5 {[%clk 0:02:58]}  dxc5 {[%clk 0:02:53]} 8. Qxd8 {[%clk 0:02:58]}  Rxd8 {[%clk 0:02:53]} 9. Be3 {[%clk 0:02:59]}  Na6 {[%clk 0:02:47]} 10. h3 {[%clk 0:02:54]}  Ne4 {[%clk 0:02:45]} 11. Nbd2 {[%clk 0:02:50]}  Bf5 {[%clk 0:02:16]} 12. g4 {[%clk 0:02:47]}  Nxd2 {[%clk 0:02:07]} 13. Nxd2 {[%clk 0:02:41]}  Bc8 {[%clk 0:02:02]} 14. Rad1 {[%clk 0:02:14]}  Bxb2 {[%clk 0:01:49]} 15. Nb3 {[%clk 0:02:13]}  Be6 {[%clk 0:01:30]} 16. Bxb7 {[%clk 0:02:11]}  Bxc4 {[%clk 0:01:24]} 17. Rb1 {[%clk 0:01:48]}  Rab8 {[%clk 0:01:05]} 18. Bxa6 {[%clk 0:01:45]}  Bxa6 {[%clk 0:01:05]} 19. Rxb2 {[%clk 0:01:43]}  c4 {[%clk 0:01:06]} 20. Bxa7 {[%clk 0:01:44]}  Rb7 {[%clk 0:01:01]} 21. Bc5 {[%clk 0:01:22]}  cxb3 {[%clk 0:01:00]} 22. Rxb3 {[%clk 0:01:21]}  Rxb3 {[%clk 0:00:56]} 23. axb3 {[%clk 0:01:22]}  Bxe2 {[%clk 0:00:56]} 24. Re1 {[%clk 0:01:22]}  Bf3 {[%clk 0:00:45]} 25. Bxe7 {[%clk 0:01:21]}  Rd3 {[%clk 0:00:42]} 26. Bf6 {[%clk 0:01:20]}  Bc6 {[%clk 0:00:36]} 27. Re3 {[%clk 0:01:15]}  Rxe3 {[%clk 0:00:28]} 28. fxe3 {[%clk 0:01:15]}  Kf8 {[%clk 0:00:27]} 29. Kf2 {[%clk 0:01:13]}  Ke8 {[%clk 0:00:27]} 30. Kg3 {[%clk 0:01:12]}  Kd7 {[%clk 0:00:27]} 31. Kf4 {[%clk 0:01:11]}  Ke6 {[%clk 0:00:27]} 32. Bc3 {[%clk 0:01:10]}  Bg2 {[%clk 0:00:26]} 33. h4 {[%clk 0:01:10]}  h5 {[%clk 0:00:26]} 34. gxh5 {[%clk 0:01:03]}  gxh5 {[%clk 0:00:26]} 35. b4 {[%clk 0:01:02]}  Kd5 {[%clk 0:00:26]} 36. Bd4 {[%clk 0:00:57]}  Kc4 {[%clk 0:00:24]} 37. Bc5 {[%clk 0:00:58]}  Kd5 {[%clk 0:00:20]} 38. Kg5 {[%clk 0:00:56]}  Bf3 {[%clk 0:00:19]} 39. Kf6 {[%clk 0:00:57]}  Kc6 {[%clk 0:00:14]} 40. Kxf7 {[%clk 0:00:56]}  Kd5 {[%clk 0:00:15]} 41. Ke7 {[%clk 0:00:55]}  Kc6 {[%clk 0:00:15]} 42. Ke6 {[%clk 0:00:56]}  Kb5 {[%clk 0:00:14]} 43. Ke5 {[%clk 0:00:55]}  Kc4 {[%clk 0:00:14]} 44. Kf4 {[%clk 0:00:56]}  Bg2 {[%clk 0:00:13]} 45. e4 {[%clk 0:00:56]}  Kd3 {[%clk 0:00:13]} 46. e5 {[%clk 0:00:57]}  Kc4 {[%clk 0:00:14]} 47. Kf5 {[%clk 0:00:57]}  Kd5 {[%clk 0:00:14]} 48. Kf6 {[%clk 0:00:56]}  Bh3 {[%clk 0:00:13]} 49. Bf2 {[%clk 0:00:52]}  Bd7 {[%clk 0:00:13]} 50. Bg3 {[%clk 0:00:50]}  Bc8 {[%clk 0:00:11]} 51. b5 {[%clk 0:00:45]}  Bd7 {[%clk 0:00:11]} 52. b6 {[%clk 0:00:45]}  Bc8 {[%clk 0:00:11]} 53. e6 {[%clk 0:00:43]}  Kc6 {[%clk 0:00:08]} 54. e7 {[%clk 0:00:43]}  Bd7 {[%clk 0:00:08]} 55. Kf7 {[%clk 0:00:38]}  Kxb6 {[%clk 0:00:07]} 56. e8=Q {[%clk 0:00:38]}  Bxe8+ {[%clk 0:00:07]} 57. Kxe8 {[%clk 0:00:39]}  Kc6 {[%clk 0:00:07]} 58. Kf7 {[%clk 0:00:40]}  Kd7 {[%clk 0:00:08]} 59. Kg6 {[%clk 0:00:41]}  Ke8 {[%clk 0:00:08]} 60. Kxh5 {[%clk 0:00:42]}  Kf7 {[%clk 0:00:08]} 61. Kg5 {[%clk 0:00:41]}  Kg8 {[%clk 0:00:08]} 62. Be5 {[%clk 0:00:41]}  Kh7 {[%clk 0:00:08]} 63. h5 {[%clk 0:00:41]}  Kg8 {[%clk 0:00:08]} 64. Kg6 {[%clk 0:00:41]}  Kf8 {[%clk 0:00:08]} 65. Bf6 {[%clk 0:00:42]}  Kg8 {[%clk 0:00:07]} 66. h6 {[%clk 0:00:42]}  Kf8 {[%clk 0:00:08]} 67. h7 {[%clk 0:00:42]} 1-0


[Site "https://www.chess.com"]